[Event "Late-Titled-Tuesday-Blitz-March-12-2024"]
[Site "Chess.com"]
[Date "2024.03.12"]
[Round "3"]
[White "Resignify"]
[Black "ACollins05"]
[Result "1/2-1/2"]
[WhiteElo "2255"]
[BlackElo "2567"]
[TimeControl "180+1"]
[EndTime "14:29:18 PDT"]
[Termination "Game drawn by repetition"]

1. e4 {[%clk 0:03:00.9]} 1... c5 {[%clk 0:02:45.3]} 2. Nc3 {[%clk 0:02:59.4]}
2... Nc6 {[%clk 0:02:44.7]} 3. g3 {[%clk 0:02:59.7]} 3... g6 {[%clk 0:02:44.8]}
4. Bg2 {[%clk 0:03:00]} 4... Bg7 {[%clk 0:02:45.4]} 5. d3 {[%clk 0:03:00.3]}
5... Rb8 {[%clk 0:02:42.9]} 6. f4 {[%clk 0:02:57]} 6... b5 {[%clk 0:02:42.2]} 7.
a3 {[%clk 0:02:57.1]} 7... d6 {[%clk 0:02:32.2]} 8. Be3 {[%clk 0:02:47.4]} 8...
Nd4 {[%clk 0:02:24.1]} 9. h3 {[%clk 0:02:30.5]} 9... e6 {[%clk 0:02:24.2]} 10.
Nf3 {[%clk 0:02:28.8]} 10... Ne7 {[%clk 0:02:24.4]} 11. O-O {[%clk 0:02:28.1]}
11... O-O {[%clk 0:02:22]} 12. Rb1 {[%clk 0:02:27.9]} 12... b4 {[%clk
0:02:20.5]} 13. axb4 {[%clk 0:02:25.6]} 13... Rxb4 {[%clk 0:02:21.4]} 14. Bd2
{[%clk 0:02:11.7]} 14... Rb8 {[%clk 0:02:07.9]} 15. Kh2 {[%clk 0:02:03.8]} 15...
Nec6 {[%clk 0:02:07.8]} 16. Be3 {[%clk 0:01:23.4]} 16... Bd7 {[%clk 0:01:59.5]}
17. Rf2 {[%clk 0:01:23.7]} 17... Qb6 {[%clk 0:01:53]} 18. Qd2 {[%clk 0:01:23.2]}
18... Qb4 {[%clk 0:01:49.4]} 19. Rff1 {[%clk 0:01:14.3]} 19... Nxf3+ {[%clk
0:01:44.2]} 20. Bxf3 {[%clk 0:01:13.8]} 20... Nd4 {[%clk 0:01:44]} 21. Bg2
{[%clk 0:01:11.9]} 21... Nb5 {[%clk 0:01:32.9]} 22. Nxb5 {[%clk 0:01:09.6]}
22... Qxd2 {[%clk 0:01:32.4]} 23. Bxd2 {[%clk 0:01:10.5]} 23... Rxb5 {[%clk
0:01:32.1]} 24. Bc3 {[%clk 0:01:07.5]} 24... Bxc3 {[%clk 0:01:10.6]} 25. bxc3
{[%clk 0:01:08.4]} 25... Rfb8 {[%clk 0:01:10.3]} 26. Rxb5 {[%clk 0:01:01.8]}
26... Rxb5 {[%clk 0:01:11.2]} 27. Ra1 {[%clk 0:01:01.8]} 27... Rb7 {[%clk
0:01:10.8]} 28. e5 {[%clk 0:00:42.1]} 28... d5 {[%clk 0:01:10.1]} 29. c4 {[%clk
0:00:41.8]} 29... Bc6 {[%clk 0:01:09.5]} 30. cxd5 {[%clk 0:00:40.1]} 30... Bxd5
{[%clk 0:01:07.5]} 31. Bxd5 {[%clk 0:00:39.5]} 31... exd5 {[%clk 0:01:08.4]} 32.
Ra5 {[%clk 0:00:36.3]} 32... c4 {[%clk 0:00:55.5]} 33. Rxd5 {[%clk 0:00:28.5]}
33... Rb2 {[%clk 0:00:54.7]} 34. dxc4 {[%clk 0:00:20.6]} 34... Rxc2+ {[%clk
0:00:54.8]} 35. Kg1 {[%clk 0:00:20.5]} 35... Rxc4 {[%clk 0:00:55.3]} 36. Kf2
{[%clk 0:00:19.1]} 36... Ra4 {[%clk 0:00:49.9]} 37. Rd7 {[%clk 0:00:19]} 37...
h5 {[%clk 0:00:47.8]} 38. Kf3 {[%clk 0:00:18.7]} 38... Ra3+ {[%clk 0:00:47.3]}
39. Kg2 {[%clk 0:00:19.3]} 39... a5 {[%clk 0:00:47.2]} 40. Ra7 {[%clk
0:00:19.4]} 40... Ra2+ {[%clk 0:00:45.3]} 41. Kf3 {[%clk 0:00:19.6]} 41... a4
{[%clk 0:00:44.7]} 42. g4 {[%clk 0:00:18.7]} 42... h4 {[%clk 0:00:42.9]} 43. g5
{[%clk 0:00:18.3]} 43... a3 {[%clk 0:00:17.9]} 44. Kg4 {[%clk 0:00:17.8]} 44...
Ra1 {[%clk 0:00:18.4]} 45. Kxh4 {[%clk 0:00:17.9]} 45... a2 {[%clk 0:00:19]} 46.
Ra6 {[%clk 0:00:17.4]} 46... Kf8 {[%clk 0:00:19]} 47. Ra7 {[%clk 0:00:17.4]}
47... Ke8 {[%clk 0:00:19.2]} 48. Ra6 {[%clk 0:00:17.3]} 48... Ke7 {[%clk
0:00:19.7]} 49. Ra7+ {[%clk 0:00:17]} 49... Ke6 {[%clk 0:00:20.1]} 50. Ra6+
{[%clk 0:00:17.5]} 50... Kf5 {[%clk 0:00:20.3]} 51. Ra7 {[%clk 0:00:17]} 51...
Ke4 {[%clk 0:00:19]} 52. Ra4+ {[%clk 0:00:16.3]} 52... Ke3 {[%clk 0:00:19]} 53.
Ra7 {[%clk 0:00:14.5]} 53... Kxf4 {[%clk 0:00:17.3]} 54. Rxf7+ {[%clk
0:00:14.4]} 54... Kxe5 {[%clk 0:00:17.8]} 55. Ra7 {[%clk 0:00:14.9]} 55... Kf4
{[%clk 0:00:15.6]} 56. Ra4+ {[%clk 0:00:15.2]} 56... Kf3 {[%clk 0:00:15.6]} 57.
Ra3+ {[%clk 0:00:15.8]} 57... Kg2 {[%clk 0:00:15.8]} 58. Ra6 {[%clk 0:00:15.1]}
58... Kh2 {[%clk 0:00:15.4]} 59. Ra5 {[%clk 0:00:15.2]} 59... Kh1 {[%clk
0:00:13.6]} 60. Ra4 {[%clk 0:00:15.7]} 60... Kg1 {[%clk 0:00:13.3]} 61. Ra3
{[%clk 0:00:16.3]} 61... Kf1 {[%clk 0:00:13]} 62. Ra6 {[%clk 0:00:16.3]} 62...
Kf2 {[%clk 0:00:13.5]} 63. Ra7 {[%clk 0:00:16.4]} 63... Kf3 {[%clk 0:00:13.4]}
64. Rf7+ {[%clk 0:00:16.2]} 64... Ke2 {[%clk 0:00:12.8]} 65. Ra7 {[%clk
0:00:17.1]} 65... Ke3 {[%clk 0:00:12.8]} 66. Ra8 {[%clk 0:00:16.5]} 66... Ke4
{[%clk 0:00:12.7]} 67. Re8+ {[%clk 0:00:16.7]} 67... Kd3 {[%clk 0:00:12.8]} 68.
Rd8+ {[%clk 0:00:16.6]} 68... Ke2 {[%clk 0:00:11]} 69. Re8+ {[%clk 0:00:16.8]}
69... Kf3 {[%clk 0:00:09.9]} 70. Rf8+ {[%clk 0:00:16.8]} 70... Kg2 {[%clk
0:00:09.4]} 71. Ra8 {[%clk 0:00:17.7]} 71... Kf2 {[%clk 0:00:09]} 72. Rf8+
{[%clk 0:00:17.4]} 72... Ke3 {[%clk 0:00:09.5]} 73. Re8+ {[%clk 0:00:17.5]}
73... Kd4 {[%clk 0:00:09.9]} 74. Rd8+ {[%clk 0:00:18.1]} 74... Ke5 {[%clk
0:00:10.2]} 75. Re8+ {[%clk 0:00:17.7]} 75... Kd6 {[%clk 0:00:10.6]} 76. Ra8
{[%clk 0:00:16.7]} 76... Kc6 {[%clk 0:00:10.6]} 77. Ra3 {[%clk 0:00:16.8]} 77...
Kc5 {[%clk 0:00:10.7]} 78. Ra8 {[%clk 0:00:16.8]} 78... Kd6 {[%clk 0:00:11]} 79.
Rd8+ {[%clk 0:00:16.6]} 79... Kc6 {[%clk 0:00:10.4]} 80. Ra8 {[%clk 0:00:17.2]}
80... Kb5 {[%clk 0:00:10.5]} 81. Ra3 {[%clk 0:00:17]} 81... Kb4 {[%clk
0:00:10.9]} 82. Ra8 {[%clk 0:00:17]} 82... Kc3 {[%clk 0:00:11.1]} 83. Rc8+
{[%clk 0:00:17]} 83... Kd4 {[%clk 0:00:11.6]} 84. Rd8+ {[%clk 0:00:17.4]} 84...
Ke4 {[%clk 0:00:11.8]} 85. Re8+ {[%clk 0:00:17.9]} 85... Kd5 {[%clk 0:00:12.3]}
86. Rd8+ {[%clk 0:00:17.9]} 86... Ke6 {[%clk 0:00:12.8]} 87. Ra8 {[%clk
0:00:18.5]} 87... Kf5 {[%clk 0:00:11.1]} 88. Ra5+ {[%clk 0:00:18.3]} 88... Kf4
{[%clk 0:00:11]} 89. Ra8 {[%clk 0:00:18.9]} 89... Kf5 {[%clk 0:00:09.1]} 90.
Rf8+ {[%clk 0:00:18.8]} 90... Ke5 {[%clk 0:00:08.8]} 91. Ra8 {[%clk 0:00:19.7]}
91... Kf4 {[%clk 0:00:08.5]} 92. Rf8+ {[%clk 0:00:19.4]} 92... Ke4 {[%clk
0:00:08.9]} 93. Ra8 {[%clk 0:00:20.3]} 93... Kf5 {[%clk 0:00:09.3]} 1/2-1/2

[Event "Late-Titled-Tuesday-Blitz-March-12-2024"]
[Site "Chess.com"]
[Date "2024.03.12"]
[Round "3"]
[White "ansko1999"]
[Black "maksimys18"]
[Result "1-0"]
[WhiteElo "2705"]
[BlackElo "2521"]
[TimeControl "180+1"]
[EndTime "14:29:27 PDT"]
[Termination "ansko1999 won by resignation"]

1. Nf3 {[%clk 0:03:00.9]} 1... e6 {[%clk 0:03:00.9]} 2. g3 {[%clk 0:02:57.5]}
2... d5 {[%clk 0:03:01.2]} 3. Bg2 {[%clk 0:02:57.8]} 3... f5 {[%clk 0:03:01.5]}
4. d3 {[%clk 0:02:56]} 4... Nf6 {[%clk 0:03:01.7]} 5. O-O {[%clk 0:02:56.4]}
5... Bd6 {[%clk 0:03:01.2]} 6. Nbd2 {[%clk 0:02:54.6]} 6... O-O {[%clk
0:03:01.2]} 7. e4 {[%clk 0:02:48]} 7... fxe4 {[%clk 0:03:00.7]} 8. dxe4 {[%clk
0:02:48.3]} 8... Nc6 {[%clk 0:02:54.9]} 9. Qe2 {[%clk 0:02:42]} 9... e5 {[%clk
0:02:49.1]} 10. exd5 {[%clk 0:02:37.1]} 10... Nxd5 {[%clk 0:02:49]} 11. Ne4
{[%clk 0:02:26.7]} 11... Bg4 {[%clk 0:02:39.7]} 12. c3 {[%clk 0:02:17.6]} 12...
Qe8 {[%clk 0:02:24.5]} 13. Qc4 {[%clk 0:01:55]} 13... Ne7 {[%clk 0:01:16]} 14.
Nxd6 {[%clk 0:01:48.7]} 14... cxd6 {[%clk 0:01:12.1]} 15. Qxg4 {[%clk
0:01:47.7]} 15... Nf6 {[%clk 0:01:08]} 16. Qe6+ {[%clk 0:01:47.2]} 16... Kh8
{[%clk 0:01:07.6]} 17. Bg5 {[%clk 0:01:43.1]} 17... h6 {[%clk 0:01:01.5]} 18.
Bxf6 {[%clk 0:01:23.4]} 18... Rxf6 {[%clk 0:01:02.4]} 19. Qb3 {[%clk 0:01:23]}
19... Ng6 {[%clk 0:00:59]} 20. Rad1 {[%clk 0:01:20.7]} 20... Qf8 {[%clk
0:00:52]} 21. Nd2 {[%clk 0:01:20]} 21... Re8 {[%clk 0:00:50.1]} 22. Ne4 {[%clk
0:01:17.7]} 22... Rfe6 {[%clk 0:00:46.2]} 23. Qxb7 {[%clk 0:01:16.1]} 23... R8e7
{[%clk 0:00:39.1]} 24. Qb3 {[%clk 0:01:13.8]} 24... Re8 {[%clk 0:00:34.2]} 25.
c4 {[%clk 0:01:10]} 25... Rb8 {[%clk 0:00:27.6]} 26. Qc2 {[%clk 0:01:07.6]}
26... Qf5 {[%clk 0:00:25.1]} 27. Rd2 {[%clk 0:01:03.4]} 27... Rf8 {[%clk
0:00:23.9]} 28. Nc3 {[%clk 0:00:55.8]} 28... Qh5 {[%clk 0:00:21.8]} 29. Qd1
{[%clk 0:00:50.9]} 29... Qg5 {[%clk 0:00:20.7]} 30. Rxd6 {[%clk 0:00:41.1]}
30... Re7 {[%clk 0:00:20]} 31. Ne4 {[%clk 0:00:36.2]} 31... Qf5 {[%clk
0:00:19.9]} 32. c5 {[%clk 0:00:33.1]} 32... a5 {[%clk 0:00:19.4]} 33. b3 {[%clk
0:00:32.7]} 33... Nf4 {[%clk 0:00:19.5]} 34. gxf4 {[%clk 0:00:29.8]} 34... exf4
{[%clk 0:00:20.4]} 35. Qf3 {[%clk 0:00:27.4]} 35... a4 {[%clk 0:00:15.3]} 36. b4
{[%clk 0:00:27.1]} 36... g5 {[%clk 0:00:13.6]} 37. Rxh6+ {[%clk 0:00:24.4]}
37... Kg7 {[%clk 0:00:13.5]} 38. Qh5 {[%clk 0:00:23.1]} 38... f3 {[%clk
0:00:12.4]} 39. Nxg5 {[%clk 0:00:13.5]} 39... fxg2 {[%clk 0:00:08.2]} 40. Rh7+
{[%clk 0:00:13.4]} 40... Kf6 {[%clk 0:00:08.3]} 41. Qh6+ {[%clk 0:00:09.5]}
41... Ke5 {[%clk 0:00:07.7]} 42. Rxe7+ {[%clk 0:00:09.6]} 42... Kd4 {[%clk
0:00:07.1]} 43. Qd6+ {[%clk 0:00:09.7]} 43... Kc4 {[%clk 0:00:07.3]} 44. Rc1+
{[%clk 0:00:09.2]} 44... Kxb4 {[%clk 0:00:05.9]} 45. Qd4+ {[%clk 0:00:07.5]}
45... Kb5 {[%clk 0:00:05.2]} 46. Rb7+ {[%clk 0:00:06.7]} 46... Kc6 {[%clk
0:00:04.7]} 47. Qd6+ {[%clk 0:00:06.5]} 47... Kxb7 {[%clk 0:00:04.9]} 48. Qb6+
{[%clk 0:00:06.8]} 48... Kc8 {[%clk 0:00:04.5]} 49. Qc6+ {[%clk 0:00:06.6]}
49... Kb8 {[%clk 0:00:04.3]} 50. Qb5+ {[%clk 0:00:06.9]} 50... Kc8 {[%clk
0:00:04.3]} 51. Qa6+ {[%clk 0:00:05.8]} 51... Kb8 {[%clk 0:00:04.4]} 52. Qd6+
{[%clk 0:00:05.7]} 52... Kc8 {[%clk 0:00:04.6]} 53. Qg3 {[%clk 0:00:04.1]} 53...
a3 {[%clk 0:00:03.7]} 54. Qh3 {[%clk 0:00:03.5]} 54... Kc7 {[%clk 0:00:02.4]}
55. Qxf5 {[%clk 0:00:03.9]} 55... Rxf5 {[%clk 0:00:03.2]} 56. Ne4 {[%clk
0:00:04.3]} 56... Kc6 {[%clk 0:00:03.2]} 57. Rc3 {[%clk 0:00:04.5]} 57... Rd5
{[%clk 0:00:03.5]} 58. Kxg2 {[%clk 0:00:04.9]} 58... Rd1 {[%clk 0:00:03.9]} 59.
Rxa3 {[%clk 0:00:05.2]} 59... Ra1 {[%clk 0:00:04.8]} 60. Ra5 {[%clk 0:00:04.8]}
60... Kd5 {[%clk 0:00:05.7]} 61. Ng3 {[%clk 0:00:05.2]} 61... Kc6 {[%clk
0:00:05.2]} 62. h4 {[%clk 0:00:05.8]} 62... Rb1 {[%clk 0:00:06.1]} 63. h5 {[%clk
0:00:06.3]} 63... Rb7 {[%clk 0:00:05.2]} 64. Ra6+ {[%clk 0:00:06.6]} 64... Kb5
{[%clk 0:00:05.4]} 65. Rg6 {[%clk 0:00:07.5]} 65... Rb6 {[%clk 0:00:06]} 66.
Rxb6+ {[%clk 0:00:07.6]} 66... Ka5 {[%clk 0:00:06.9]} 67. Rg6 {[%clk 0:00:08.2]}
67... Ka4 {[%clk 0:00:07.8]} 68. Rg5 {[%clk 0:00:09]} 68... Ka5 {[%clk
0:00:08.7]} 69. Rg4 {[%clk 0:00:09.9]} 69... Kb5 {[%clk 0:00:08.5]} 70. Rf4
{[%clk 0:00:10.8]} 70... Kc6 {[%clk 0:00:09.2]} 71. Rf3 {[%clk 0:00:11.7]} 71...
Kd5 {[%clk 0:00:10]} 72. Re3 {[%clk 0:00:12.6]} 72... Kd4 {[%clk 0:00:10.2]} 73.
Kf3 {[%clk 0:00:13.5]} 73... Kxc5 {[%clk 0:00:11]} 74. Kf4 {[%clk 0:00:14.4]}
74... Kd4 {[%clk 0:00:11.9]} 75. Re4+ {[%clk 0:00:15.3]} 75... Kc3 {[%clk
0:00:12]} 76. f3 {[%clk 0:00:16.2]} 76... Kd3 {[%clk 0:00:12.6]} 77. Nf5 {[%clk
0:00:17.1]} 77... Kd2 {[%clk 0:00:13.2]} 78. Ne3 {[%clk 0:00:18]} 78... Ke1
{[%clk 0:00:14]} 79. Ng4+ {[%clk 0:00:18.9]} 79... Kf1 {[%clk 0:00:14]} 80. Ne5
{[%clk 0:00:19.8]} 80... Kg2 {[%clk 0:00:14.9]} 81. a4 {[%clk 0:00:20.7]} 81...
Kh3 {[%clk 0:00:15.5]} 82. h6 {[%clk 0:00:21.5]} 82... Kh4 {[%clk 0:00:16.4]}
83. Kf5+ {[%clk 0:00:22.4]} 83... Kh5 {[%clk 0:00:17.3]} 84. h7 {[%clk
0:00:22.1]} 84... Kh6 {[%clk 0:00:18.2]} 85. a5 {[%clk 0:00:20.9]} 85... Kg7
{[%clk 0:00:19.1]} 86. a6 {[%clk 0:00:21.5]} 86... Kf8 {[%clk 0:00:18.9]} 87.
Ke6 {[%clk 0:00:22.4]} 87... Ke8 {[%clk 0:00:19]} 88. f4 {[%clk 0:00:23.3]}
88... Kd8 {[%clk 0:00:19.9]} 89. f5 {[%clk 0:00:23.9]} 89... Kc7 {[%clk
0:00:20.8]} 90. f6 {[%clk 0:00:24.8]} 90... Kb6 {[%clk 0:00:21.7]} 91. Kf7
{[%clk 0:00:24.9]} 91... Ka7 {[%clk 0:00:22.6]} 92. Ng6 {[%clk 0:00:25.8]} 92...
Kb6 {[%clk 0:00:23.5]} 93. Ne7 {[%clk 0:00:26.7]} 93... Kc5 {[%clk 0:00:24.3]}
94. Re6 {[%clk 0:00:27.1]} 94... Kd4 {[%clk 0:00:23.7]} 95. a7 {[%clk 0:00:28]}
95... Kc4 {[%clk 0:00:24.6]} 96. a8=Q {[%clk 0:00:27.3]} 96... Kd4 {[%clk
0:00:25.5]} 97. Qd5+ {[%clk 0:00:26.7]} 97... Kc3 {[%clk 0:00:24.9]} 98. h8=B
{[%clk 0:00:25.8]} 98... Kb4 {[%clk 0:00:25.8]} 99. Bg7 {[%clk 0:00:26.5]} 99...
Ka3 {[%clk 0:00:26.7]} 100. Qb3+ {[%clk 0:00:26.8]} 100... Kxb3 {[%clk
0:00:26.3]} 101. Rb6+ {[%clk 0:00:27.5]} 101... Kc4 {[%clk 0:00:27.2]} 102. Rb4+
{[%clk 0:00:27.9]} 102... Kc5 {[%clk 0:00:27.9]} 103. Rb5+ {[%clk 0:00:27.9]}
103... Kd6 {[%clk 0:00:28.7]} 104. Rd5+ {[%clk 0:00:27.8]} 104... Kc7 {[%clk
0:00:29.6]} 105. Rd7+ {[%clk 0:00:28.3]} 105... Kb8 {[%clk 0:00:29.8]} 106. Rb7+
{[%clk 0:00:28]} 106... Ka8 {[%clk 0:00:29.5]} 107. Ke8 {[%clk 0:00:28.8]}
107... Kxb7 {[%clk 0:00:29.4]} 108. f7 {[%clk 0:00:29.7]} 108... Ka8 {[%clk
0:00:30.3]} 109. f8=Q {[%clk 0:00:30.1]} 109... Kb7 {[%clk 0:00:31.2]} 110. Qf3+
{[%clk 0:00:30.3]} 110... Kc7 {[%clk 0:00:32.1]} 111. Qb7+ {[%clk 0:00:29.4]}
111... Kd6 {[%clk 0:00:33]} 112. Qd7+ {[%clk 0:00:27.4]} 1-0

[Event "Late-Titled-Tuesday-Blitz-March-12-2024"]
[Site "Chess.com"]
[Date "2024.03.12"]
[Round "4"]
[White "GiorgianBarbosa"]
[Black "Renatoforf"]
[Result "1-0"]
[WhiteElo "2466"]
[BlackElo "1585"]
[TimeControl "180+1"]
[EndTime "14:32:33 PDT"]
[Termination "GiorgianBarbosa won by resignation"]

1. c4 {[%clk 0:02:59.2]} 1... Nf6 {[%clk 0:02:58.2]} 2. d4 {[%clk 0:02:57.6]}
2... c5 {[%clk 0:02:57.3]} 3. d5 {[%clk 0:02:57.5]} 3... b5 {[%clk 0:02:56.8]}
4. cxb5 {[%clk 0:02:54.2]} 4... a6 {[%clk 0:02:56.7]} 5. bxa6 {[%clk 0:02:55.1]}
5... g6 {[%clk 0:02:55]} 6. Nf3 {[%clk 0:02:56]} 6... Bg7 {[%clk 0:02:54.8]} 7.
g3 {[%clk 0:02:56.9]} 7... O-O {[%clk 0:02:54]} 8. Bg2 {[%clk 0:02:57.8]} 8...
d6 {[%clk 0:02:53.4]} 9. O-O {[%clk 0:02:58.7]} 9... Nxa6 {[%clk 0:02:52.3]} 10.
Nc3 {[%clk 0:02:59.4]} 10... Nc7 {[%clk 0:02:50.3]} 11. e4 {[%clk 0:02:58.3]}
11... Ba6 {[%clk 0:02:49]} 12. Re1 {[%clk 0:02:57.9]} 12... Nb5 {[%clk 0:02:46]}
13. e5 {[%clk 0:02:55.2]} 13... Ng4 {[%clk 0:02:35.9]} 14. Bf4 {[%clk
0:02:46.4]} 14... Nxc3 {[%clk 0:02:32.1]} 15. bxc3 {[%clk 0:02:47.3]} 15... Nxe5
{[%clk 0:02:29.7]} 16. Nxe5 {[%clk 0:02:48.2]} 16... dxe5 {[%clk 0:02:29.3]} 17.
Bxe5 {[%clk 0:02:49.1]} 17... Bc4 {[%clk 0:02:23.9]} 18. Bxg7 {[%clk 0:02:44]}
18... Kxg7 {[%clk 0:02:23]} 19. d6 {[%clk 0:02:44.9]} 19... exd6 {[%clk
0:02:17.2]} 20. Bxa8 {[%clk 0:02:43.3]} 20... Qxa8 {[%clk 0:02:17.3]} 21. Qxd6
{[%clk 0:02:43.6]} 1-0

[Event "Late-Titled-Tuesday-Blitz-March-12-2024"]
[Site "Chess.com"]
[Date "2024.03.12"]
[Round "4"]
[White "campochess"]
[Black "Defenstrator"]
[Result "0-1"]
[WhiteElo "2193"]
[BlackElo "2423"]
[TimeControl "180+1"]
[EndTime "14:33:11 PDT"]
[Termination "Defenstrator won by resignation"]

1. d4 {[%clk 0:02:59.5]} 1... Nf6 {[%clk 0:03:00.5]} 2. Bg5 {[%clk 0:02:59]}
2... Ne4 {[%clk 0:03:00.7]} 3. h4 {[%clk 0:02:58]} 3... d5 {[%clk 0:03:00.2]} 4.
Nd2 {[%clk 0:02:57.8]} 4... Qd6 {[%clk 0:03:00]} 5. Nxe4 {[%clk 0:02:52.3]} 5...
dxe4 {[%clk 0:03:00.3]} 6. c3 {[%clk 0:02:52.4]} 6... Bf5 {[%clk 0:02:59.1]} 7.
e3 {[%clk 0:02:49.5]} 7... Nc6 {[%clk 0:02:57.7]} 8. Bb5 {[%clk 0:02:46.9]} 8...
O-O-O {[%clk 0:02:57]} 9. Qa4 {[%clk 0:02:45.5]} 9... f6 {[%clk 0:02:46.5]} 10.
Bf4 {[%clk 0:02:43.6]} 10... e5 {[%clk 0:02:44.2]} 11. Bxc6 {[%clk 0:02:39]}
11... exf4 {[%clk 0:02:41.4]} 12. Bb5 {[%clk 0:02:17.1]} 12... a6 {[%clk
0:02:41.2]} 13. Be2 {[%clk 0:02:16]} 13... fxe3 {[%clk 0:02:38.9]} 14. fxe3
{[%clk 0:02:11.1]} 14... Qg3+ {[%clk 0:02:34.7]} 15. Kf1 {[%clk 0:02:05.9]}
15... Qxe3 {[%clk 0:02:34.6]} 16. Qd1 {[%clk 0:01:54.4]} 16... Bd6 {[%clk
0:02:31.6]} 17. Nh3 {[%clk 0:01:52.6]} 17... Bg3 {[%clk 0:02:27]} 18. Bg4 {[%clk
0:01:50.4]} 18... Rd5 {[%clk 0:02:24]} 19. Bxf5+ {[%clk 0:01:48.1]} 19... Rxf5+
{[%clk 0:02:24]} 0-1

[Event "Late-Titled-Tuesday-Blitz-March-12-2024"]
[Site "Chess.com"]
[Date "2024.03.12"]
[Round "4"]
[White "manitodeplomo"]
[Black "Er_is_geen_hoop_meer"]
[Result "1-0"]
[WhiteElo "2707"]
[BlackElo "2529"]
[TimeControl "180+1"]
[EndTime "14:33:17 PDT"]
[Termination "manitodeplomo won by resignation"]

1. d4 {[%clk 0:03:00.9]} 1... e5 {[%clk 0:02:57.6]} 2. dxe5 {[%clk 0:03:00.1]}
2... d6 {[%clk 0:02:58.2]} 3. Nf3 {[%clk 0:02:42.2]} 3... Bg4 {[%clk 0:02:58.5]}
4. Bf4 {[%clk 0:02:34.5]} 4... Nc6 {[%clk 0:02:58.2]} 5. exd6 {[%clk 0:02:33.5]}
5... Qf6 {[%clk 0:02:58.7]} 6. e3 {[%clk 0:02:33.8]} 6... O-O-O {[%clk
0:02:57.8]} 7. Nbd2 {[%clk 0:02:30.8]} 7... Bxd6 {[%clk 0:02:56.8]} 8. Bg5
{[%clk 0:02:30.5]} 8... Qxb2 {[%clk 0:02:56.6]} 9. Bxd8 {[%clk 0:02:30.2]} 9...
Kxd8 {[%clk 0:02:35.1]} 10. Be2 {[%clk 0:02:27.5]} 10... Nb4 {[%clk 0:02:29.9]}
11. O-O {[%clk 0:02:25.9]} 11... Nxc2 {[%clk 0:02:28.7]} 12. Rb1 {[%clk
0:02:23.9]} 12... Qxa2 {[%clk 0:02:29]} 13. Bc4 {[%clk 0:02:17.2]} 13... Qa4
{[%clk 0:02:29.3]} 14. Bb3 {[%clk 0:02:16.4]} 14... Bxf3 {[%clk 0:02:28.8]} 15.
Nxf3 {[%clk 0:02:12.3]} 15... Nxe3 {[%clk 0:02:27.5]} 16. fxe3 {[%clk
0:01:55.7]} 16... Qa5 {[%clk 0:02:28.4]} 17. Bxf7 {[%clk 0:01:54.7]} 17... Nf6
{[%clk 0:02:28.7]} 18. Rxb7 {[%clk 0:01:53.4]} 18... Kc8 {[%clk 0:02:29.2]} 19.
Qb3 {[%clk 0:01:49.4]} 19... Ng4 {[%clk 0:02:28]} 20. Be6+ {[%clk 0:01:45.4]}
20... Kd8 {[%clk 0:02:28.6]} 21. Bxg4 {[%clk 0:01:37.7]} 1-0

[Event "Late-Titled-Tuesday-Blitz-March-12-2024"]
[Site "Chess.com"]
[Date "2024.03.12"]
[Round "4"]
[White "thesupera12"]
[Black "Mikasinski"]
[Result "0-1"]
[WhiteElo "2441"]
[BlackElo "2665"]
[TimeControl "180+1"]
[EndTime "14:33:53 PDT"]
[Termination "Mikasinski won by resignation"]

1. b3 {[%clk 0:02:53.9]} 1... e5 {[%clk 0:03:00.2]} 2. Bb2 {[%clk 0:02:53.9]}
2... Nc6 {[%clk 0:03:01]} 3. e3 {[%clk 0:02:54.4]} 3... Nf6 {[%clk 0:03:00.4]}
4. Bb5 {[%clk 0:02:55]} 4... e4 {[%clk 0:02:47.1]} 5. Ne2 {[%clk 0:02:51.8]}
5... d5 {[%clk 0:02:35.9]} 6. O-O {[%clk 0:02:49.2]} 6... Bd6 {[%clk 0:02:32.7]}
7. c4 {[%clk 0:02:46.9]} 7... Bxh2+ {[%clk 0:02:20.9]} 8. Kxh2 {[%clk
0:02:39.9]} 8... Ng4+ {[%clk 0:02:21.5]} 9. Kg3 {[%clk 0:02:40.3]} 9... h5
{[%clk 0:02:10]} 10. Bxc6+ {[%clk 0:02:38.9]} 10... bxc6 {[%clk 0:02:09.1]} 11.
f4 {[%clk 0:02:37]} 11... h4+ {[%clk 0:02:04.2]} 12. Kh3 {[%clk 0:02:34]} 12...
Nxe3+ {[%clk 0:02:03.2]} 13. Kh2 {[%clk 0:02:34.6]} 13... Nxd1 {[%clk 0:02:02]}
14. Rxd1 {[%clk 0:02:35.3]} 14... Bg4 {[%clk 0:02:01.3]} 15. Nbc3 {[%clk
0:02:33.1]} 15... d4 {[%clk 0:02:00.6]} 16. Nxe4 {[%clk 0:02:31.4]} 16... Bxe2
{[%clk 0:01:59.5]} 17. Re1 {[%clk 0:02:32.3]} 17... d3 {[%clk 0:01:58.9]} 18.
Bxg7 {[%clk 0:02:30.1]} 18... f5 {[%clk 0:01:49.2]} 19. Bf6 {[%clk 0:02:05]}
19... fxe4 {[%clk 0:01:42.5]} 20. Bxd8 {[%clk 0:02:04.4]} 20... Rxd8 {[%clk
0:01:42.7]} 21. Kh3 {[%clk 0:02:03.2]} 21... Kf7 {[%clk 0:01:41.7]} 22. b4
{[%clk 0:02:00.9]} 22... Rdg8 {[%clk 0:01:41.1]} 23. b5 {[%clk 0:01:58.1]} 23...
c5 {[%clk 0:01:40.1]} 24. Rxe2 {[%clk 0:01:56.9]} 24... dxe2 {[%clk 0:01:39]}
0-1

[Event "Late-Titled-Tuesday-Blitz-March-12-2024"]
[Site "Chess.com"]
[Date "2024.03.12"]
[Round "4"]
[White "masnyszachistaaa"]
[Black "DraningWaterHi"]
[Result "1-0"]
[WhiteElo "2555"]
[BlackElo "2238"]
[TimeControl "180+1"]
[EndTime "14:34:03 PDT"]
[Termination "masnyszachistaaa won by resignation"]

1. c4 {[%clk 0:02:57.6]} 1... c5 {[%clk 0:02:53.9]} 2. Nc3 {[%clk 0:02:56.9]}
2... Nc6 {[%clk 0:02:53.5]} 3. Nf3 {[%clk 0:02:57]} 3... g6 {[%clk 0:02:52.3]}
4. e3 {[%clk 0:02:56.8]} 4... Bg7 {[%clk 0:02:51.6]} 5. d4 {[%clk 0:02:57]} 5...
cxd4 {[%clk 0:02:50.4]} 6. exd4 {[%clk 0:02:57.9]} 6... d6 {[%clk 0:02:50.5]} 7.
Be2 {[%clk 0:02:47.4]} 7... Bg4 {[%clk 0:02:49.6]} 8. Be3 {[%clk 0:02:45.5]}
8... Nh6 {[%clk 0:02:48.1]} 9. d5 {[%clk 0:02:35.9]} 9... Bxf3 {[%clk
0:02:47.7]} 10. Bxf3 {[%clk 0:02:30.8]} 10... Ne5 {[%clk 0:02:47.7]} 11. Be2
{[%clk 0:02:31.1]} 11... Nf5 {[%clk 0:02:47.7]} 12. Bf4 {[%clk 0:02:21.8]} 12...
h6 {[%clk 0:02:46.7]} 13. O-O {[%clk 0:02:19.6]} 13... Nd7 {[%clk 0:02:46.3]}
14. Qd2 {[%clk 0:01:57.8]} 14... g5 {[%clk 0:02:38.2]} 15. Bg3 {[%clk
0:01:57.4]} 15... Nxg3 {[%clk 0:02:34.8]} 16. hxg3 {[%clk 0:01:58.3]} 16... O-O
{[%clk 0:02:35]} 17. Rfe1 {[%clk 0:01:55]} 17... Nc5 {[%clk 0:02:27.9]} 18. Rac1
{[%clk 0:01:51.8]} 18... f6 {[%clk 0:02:27.5]} 19. b4 {[%clk 0:01:50.6]} 19...
Nd7 {[%clk 0:02:26.9]} 20. Bg4 {[%clk 0:01:46.4]} 20... f5 {[%clk 0:02:26.8]}
21. Be2 {[%clk 0:01:43.1]} 21... Rc8 {[%clk 0:02:25.4]} 22. Nb5 {[%clk
0:01:43.1]} 22... a6 {[%clk 0:02:24.6]} 23. Nd4 {[%clk 0:01:43.3]} 23... Bxd4
{[%clk 0:02:23.5]} 24. Qxd4 {[%clk 0:01:44.2]} 24... Qb6 {[%clk 0:02:23.2]} 25.
Qxb6 {[%clk 0:01:36.5]} 25... Nxb6 {[%clk 0:02:24.1]} 26. c5 {[%clk 0:01:36.7]}
26... Nd7 {[%clk 0:02:16.4]} 27. c6 {[%clk 0:01:27.8]} 27... bxc6 {[%clk
0:02:16.3]} 28. dxc6 {[%clk 0:01:19.7]} 28... Nb8 {[%clk 0:02:16.4]} 29. c7
{[%clk 0:01:18.8]} 1-0